Cogmind - Beta 14 @@@ ROGUE MODE // 2024.08.28 @ 12:13:12 Player: star Result: Destroyed by as-94063 with Assembled Maul Performance ------------- Evolutions (0) 0 Regions Visited (2) 400 Robots Destroyed (16) 80 Value Destroyed (306) 306 Prototype IDs (4) 80 Alien Tech Used (0) 0 Bonus (0) 0 TOTAL SCORE: 866 Bonus ------- None Cogmind --------- Core Integrity 0/250 Matter 284/300 Energy 98/100 System Corruption 4% Temperature Cool (0) Movement Core (50) Location -10/Mines Parts ------- > --- POWER (1) -------- (None) > --- PROPULSION (2) --- (None) > --- UTILITY (2) ------ (None) > --- WEAPON (2) ------- (None) > --- INVENTORY (5) ---- Light Ion Engine Improved Heat Sink High-capacity Battery (250) Weapon Shielding Hacking Suite Peak State ------------ > --- POWER ------------ Light Ion Engine > --- PROPULSION ------- Light Treads Light Treads > --- UTILITY ---------- Large Storage Unit Weapon Shielding > --- WEAPON ----------- Medium Laser Assault Rifle > --- INVENTORY -------- Light Ion Engine Heat Sink High-capacity Battery Targeting Computer Propulsion Shielding Weapon Shielding Weapon Shielding Hacking Suite Light Assault Rifle Light Assault Rifle [Rating: 8] Favorites ----------- Power Light Ion Engine Engine Light Ion Engine Propulsion Light Treads Treads Light Treads Utility Large Storage Unit Storage Large Storage Unit Protection Weapon Shielding Weapon Medium Laser Energy Gun Medium Laser Ballistic Gun Assault Rifle Build | -11 -10 -10 ------- Run | Yrd Mat Min Slots Evolved . | . . . Power . | . . . Propulsion . | . . . Utility . | . . . Weapon . | . . . Parts Attached 13 | 6 3 4 Power 2 | 1 1 . Engine 2 | 1 1 . Core . | . . . Reactor . | . . . Propulsion 3 | 2 . 1 Treads 3 | 2 . 1 Leg . | . . . Wheel . | . . . Hover . | . . . Flight . | . . . Utility 4 | 1 2 1 Device . | . . . Storage 2 | 1 1 . Processor . | . . . Hackware . | . . . Protection 2 | . 1 1 Artifact . | . . . Weapon 4 | 2 . 2 Energy Gun 1 | 1 . . Energy Cannon . | . . . Ballistic Gun 3 | 1 . 2 Ballistic Cannon . | . . . Launcher . | . . . Special Weapon . | . . . Impact Weapon . | . . . Slashing Weapon . | . . . Piercing Weapon . | . . . Special Melee Weapon . | . . . Unidentified Prototypes . | . . . Parts Lost 5 | . . 5 Power 1 | . . 1 Propulsion 1 | . . 1 Utility 1 | . . 1 Weapon 2 | . . 2 Highest Loss Streak 5 | . . 5 To Critical Strikes . | . . . Average Slot Usage (%) 97 | . 96 97 Engine 13 | . 14 13 Treads 27 | . 28 27 Storage 14 | . 14 14 Protection 11 | . 11 13 Energy Gun 13 | . 14 13 Ballistic Gun 14 | . 14 14 Peak Build Rating 8 | 6 8 8 Average Rating 6 | 4 6 7 On Entrance 4 | . 6 8 Naked Turns 2 | . . 2 Heaviest Build 28 | 12 28 28 Greatest Support 40 | 40 40 40 Greatest Overweight (x) . | . . . Average Overweight (x) . | . . . Largest Inventory Capacity 15 | 8 15 15 Average Capacity 14 | 6 14 14 Most Carried 11 | . 10 11 Average Carried 7 | . 7 10 Final Capacity 15 | 8 15 5 Final Carried 10 | . 10 5 Class Distribution -------------------- 100% | Mutant Dominant Class ---------------- Mutant | -10/Materials Mutant | -10/Mines Resources | -11 -10 -10 ----------- Run | Yrd Mat Min Matter Collected 464 | 252 161 51 Remotely . | . . . Salvage Created 517 | . 429 88 Parts 36 | . 32 4 Haulers Intercepted 1 | . 1 . Recyclers Shooed . | . . . Parts Field Recycled . | . . . Retrieved Matter . | . . . Parts Self-Destructed . | . . . Prevented . | . . . Kills | -11 -10 -10 ------- Run | Yrd Mat Min Combat Hostiles Destroyed 13 | . 10 3 Guns 13 | . 10 3 Classes Destroyed 7 | . 6 1 Builder 1 | . 1 . Hauler 1 | . 1 . Recycler 1 | . 1 . Operator 1 | . 1 . Swarmer 6 | . 6 . Grunt 6 | . 4 2 Assembled 1 | . . 1 Best Kill Streak 3 | . 3 1 Combat Bots Only 3 | . 3 1 Max Kills in Single Turn 1 | . 1 1 Gunslinging . | . . . Exploded . | . . . Melee . | . . . Uniques/NPCs Destroyed . | . . . Combat | -11 -10 -10 -------- Run | Yrd Mat Min Hostile Shots Fired 94 | . 50 44 Missed 21 | . 10 11 Damage Taken 956 | . 378 578 Core 275 | . 126 149 Absorbed by Shields . | . . . Redirected to Shielding 55 | . 24 31 Core Remaining (%) 100 | 100 . . Volleys Fired 60 | . 41 19 Largest 2 | . 2 2 Hottest 70 | . 70 70 Shots Fired 120 | . 83 37 Gun 120 | . 83 37 Cannon . | . . . Launcher . | . . . Special . | . . . Kinetic 63 | . 42 21 Thermal 57 | . 41 16 Explosive . | . . . Electromagnetic . | . . . Robot Hit Streak 9 | . 7 9 Robot Miss Streak 5 | . 5 3 Penetration Max . | . . . Secondary Targets 1 | . 1 . Max Gunslinging Chain 1 | . 1 . Shots Hit Robots 71 | . 46 25 Core Hits 32 | . 23 9 Critical Kills . | . . . Critical Parts Destroyed 1 | . 1 . Critical Strikes 10 | . 8 2 Burn 9 | . 7 2 Destroy 1 | . 1 . Melee Attacks . | . . . Impact . | . . . Slashing . | . . . Piercing . | . . . Sneak Attacks . | . . . Combat Hostiles . | . . . Follow-up Attacks . | . . . Damage Inflicted 898 | . 615 283 Guns 891 | . 610 281 Cannons . | . . . Explosions . | . . . Melee . | . . . Ramming 7 | . 5 2 Kinetic 428 | . 270 158 Thermal 463 | . 340 123 Explosive . | . . . Electromagnetic . | . . . Impact . | . . . Slashing . | . . . Piercing . | . . . Highest Corruption 4 | . 2 4 Average Corruption 2 | . 2 2 Corruption Purged . | . . . Corruption Blocked . | . . . Effects 9 | . 4 5 Message Errors 2 | . 2 . Matter Fused 2 | . . 2 Heat Flow Errors 1 | . . 1 Parts Rejected 1 | . . 1 Data Loss (minor) 2 | . 1 1 Misfires 1 | . 1 . Overload Shots . | . . . Overflow Damage . | . . . Projectiles . | . . . Explosions . | . . . Melee . | . . . Knockbacks . | . . . Impact . | . . . Kinetic . | . . . Secondary . | . . . Self-Inflicted Damage 1 | . . 1 Shots . | . . . Rammed 4 | . 2 2 Targets Rammed 4 | . 2 2 Kicked . | . . . Crushed . | . . . Highest Temperature 117 | . 117 88 Average Temperature 29 | . 24 40 Received Heat Transfer 234 | . 126 108 Siege Activations . | . . . Robots Corrupted . | . . . Combat Hostiles . | . . . Parts Fried . | . . . Impact Corruptions . | . . . Robots Melted . | . . . Combat Hostiles . | . . . Parts Melted 4 | . 3 1 Heat Transferred 2035 | . 1517 518 Parts Sabotaged . | . . . Parts Stolen . | . . . Parts Stripped . | . . . Power Chain Reactions . | . . . Alert | -11 -10 -10 ------- Run | Yrd Mat Min Peak Influence 155 | . 155 83 Initial 18 | . . 18 Average 74 | . 80 65 Maximum Alert Level . | . . . Low Security (%) 100 | 100 100 100 Level 1 . | . . . Level 2 . | . . . Level 3 . | . . . Level 4 . | . . . Level 5 . | . . . High Security . | . . . Max Security . | . . . Squads Dispatched 2 | . 2 . Investigation . | . . . Extermination . | . . . Reinforcement 2 | . 2 . Assault . | . . . Garrison . | . . . Intercept . | . . . Searches Triggered . | . . . Construction Impeded . | . . . Haulers Reinforced . | . . . Active Scanning Responses . | . . . Cargo Convoy Interrupts . | . . . Stealth | -11 -10 -10 --------- Run | Yrd Mat Min Distress Signals 3 | . 3 . Communications Jammed . | . . . Distress Signals . | . . . Times Spotted 42 | . 28 14 Peak Tracking Total 11 | . 6 11 Tactical Retreats 4 | . 1 3 Traps | -11 -10 -10 ------- Run | Yrd Mat Min Traps Triggered 1 | . 1 . Indirectly . | . . . Trap Hack Attempts . | . . . Triggered . | . . . Disarmed . | . . . Reprogrammed . | . . . Reused . | . . . Traps Extracted . | . . . Installed . | . . . Triggered . | . . . Machines | -11 -10 -10 ---------- Run | Yrd Mat Min Machines Disabled . | . . . Max in Single Turn . | . . . Machines Repaired . | . . . Machines Dismantled . | . . . Machines Sabotaged . | . . . Overloaded Fab Kills . | . . . Hacking | -11 -10 -10 --------- Run | Yrd Mat Min Machines Accessed 5 | . 5 . Terminals 5 | . 5 . Fabricators . | . . . Repair Stations . | . . . Recycling Units . | . . . Scanalyzers . | . . . Garrison Access . | . . . Total Hacks 18 | . 18 . Successful 11 | . 11 . Failed 7 | . 7 . Catastrophic . | . . . Database Lockouts . | . . . Manual 14 | . 14 . Terminals 18 | . 18 . Fabricators . | . . . Repair Stations . | . . . Recycling Units . | . . . Scanalyzers . | . . . Garrison Access . | . . . Terminal Hacks 3 | . 3 . Prototype ID Bank 2 | . 2 . Hauler Manifests 1 | . 1 . Fabricator Hacks . | . . . Repair Station Hacks . | . . . Recycling Unit Hacks . | . . . Scanalyzer . | . . . Garrison Access Hacks . | . . . Unauthorized Hacks 7 | . 7 . Terminals 7 | . 7 . Botnet 5 | . 5 . Skim 2 | . 2 . Fabricators . | . . . Repair Stations . | . . . Recycling Units . | . . . Scanalyzers . | . . . Garrison Access . | . . . Data Cores Recovered . | . . . Used . | . . . Hacking Detections 4 | . 4 . Full Trace Events 1 | . 1 . Feedback Events . | . . . Feedback Blocked . | . . . Robot Schematics Acquired . | . . . Robots Built . | . . . Authchips . | . . . Time . | . . . Total Robot Build Rating . | . . . Part Schematics Acquired . | . . . Parts Built . | . . . Authchips . | . . . Time . | . . . Total Part Build Rating . | . . . Parts Repaired . | . . . Time . | . . . Parts Recycled . | . . . Recycled Matter . | . . . Retrieved Matter . | . . . Retrieved Components . | . . . Parts Scanalyzed . | . . . Part Schematics Acquired . | . . . Parts Damaged . | . . . Bothacking | -11 -10 -10 ------------ Run | Yrd Mat Min Used RIF Installer . | . . . Robots Hacked . | . . . Non-combat . | . . . Combat . | . . . Robot Hacks Applied . | . . . Relay Couplers Released . | . . . Fabnet Peak Effective % . | . . . Robots Rewired . | . . . Allies Hacked . | . . . Hacks Repelled . | . . . Allies | -11 -10 -10 -------- Run | Yrd Mat Min Total Allies . | . . . Largest Group . | . . . Highest-Rated Group . | . . . Highest-Rated Ally . | . . . Total Orders . | . . . Ally Attacks . | . . . Total Damage . | . . . Kills . | . . . Allies Corrupted . | . . . Allies Melted . | . . . Intel | -11 -10 -10 ------- Run | Yrd Mat Min Robot Analysis Total . | . . . Derelict Logs Recovered . | . . . Drone Launches . | . . . Drone Recoveries . | . . . Exploration | -11 -10 -10 ------------- Run | Yrd Mat Min Turns Passed 1493 | 64 1224 205 Spaces Moved 781 | 38 656 87 Core 6 | 4 . 2 Treads 775 | 34 656 85 Legs . | . . . Wheels . | . . . Hover . | . . . Flight . | . . . Fastest Speed 50 | 50 160 50 Average Speed 159 | 148 160 157 Slowest Speed 160 | 160 160 160 Overloaded Moves . | . . . Propulsion Burnouts . | . . . Robots Hopped . | . . . Cave-ins Triggered . | . . . Exploration Rate (%) 30 | 3 71 18 Regions Visited 2 Branch Regions 1 Pre-discovered Areas . | . . . Known Exits Taken . | . . . Unknown Exits Taken 2 | 1 1 . Scrap Searched . | . . . Spaces Dug . | . . . Terrain Destroyed . | . . . Melee . | . . . Projectile . | . . . AOE . | . . . Terrain Rammed . | . . . Walls Destroyed . | . . . Machines Disabled . | . . . Actions | -11 -10 -10 --------- Run | Yrd Mat Min Total 908 | 43 746 119 Wait 41 | . 35 6 Move 780 | 37 656 87 Hop . | . . . Pick Up 10 | . 9 1 Fast Attach 9 | 6 2 1 Attach 2 | . . 2 Detach . | . . . Swap 2 | . 1 1 Drop 1 | . 1 . Fire 60 | . 41 19 Melee . | . . . Ram 2 | . . 2 Kick . | . . . Crush 1 | . 1 . Escape Stasis . | . . . Rewire . | . . . Trap . | . . . Miscellaneous . | . . . Route ------- -11/Scrapyard -10/Materials (discovered 3 exits: [*Mat x2] / [*Min]) -10/Mines History --------- Turn | Location | Event 28 | -11/Scrapyard | Discovered new exit (range 15) 65 | -11/Scrapyard | Entered Materials 277 | -10/Materials | Discovered new exit (range 15) 309 | -10/Materials | Build established: Mutant 439 | -10/Materials | Discovered new exit (range 10) 634 | -10/Materials | Discovered new exit (range 16) 938 | -10/Materials | Core integrity fell below 50% 1289 | -10/Materials | Entered Mines 1365 | -10/Mines | Core integrity fell below 20% 1444 | -10/Mines | Assembled infested the area 1492 | -10/Mines | Released all parts (4) 1494 | -10/Mines | Destroyed by as-94063 with Assembled Maul Last Messages --------------- 01367_ Sml. Laser melted. 01367_ G-34 Mercenary destroyed. 01370_ Acquired 31 matter. 01376_ Acquired Imp. Heat Sink. 01434_ System corrupted: Component data lost. 01444_ ALERT: Infestation in the mines, dispatching Demolisher response squad. 01471_ Assault Rifle destroyed. 01471_ System corrupted by crushing effect (+1). 01478_ as-81607 destroyed. 01483_ Med. Laser destroyed. 01485_ Lgt. Ion Engine destroyed. 01485_ System corrupted by crushing effect (+1). 01489_ Propulsion Shielding destroyed. 01491_ System corrupted: Matter fused (-6). 01491_ Lgt. Treads destroyed. 01492_ Released Lgt. Treads. 01492_ Released Lrg. Storage Unit. 01492_ Released Lgt. Assault Rifle. 01492_ Slammed into as-94063. Map ----- +----------------------------------------------------+ | ??????????????????????????????????? | | ??????????????????????????????????? | | ???????????????????????????? ?????? | | ??????????????????????????## ????? | | ??????????????????????????# ????? | | ?????????????????????????? ????? | | ??????????????????????????? ????? | | ??????????????????????????? ????? | | ??????????????????????????? ????? | | ???????????????????????##??# ????? | | ??????????????????????? #?# ##??? | | ???????????????????????# #?# ##?? | | ???????????????????????# #?# #?? | | ???????????????????????# #?# #?? | | ???????????????????????# #?? #?? | | ???????????????????????# #??# #?? | | ???????????????????????# #??# #?? | | ???????????????????????# #?## #?? | | ???????????????????????#[### #?? | | ???????????????????????#!! #?? | | ???????????????????????#a#### ##?? | | ???????????????????????#=#??# ##??? | | ???????????????????????#!#??# #???? | | ???????????????????????#!#### #???? | | ???????????????????????#a # #???? | | ??????????????????????## @ a ##??? | | ?????????????????????## ##?? | | ?????????????????????# #?? | | ?????????????????????# ## ##? | | ?????????????????????## ### #? | | ??????????????????????## #?# #? | | ???????????????????????# #?# #? | | ???????????????????????# #?## #? | | ???????????????????????# #??## ##? | | ???????????????????????# #???## #?? | | ???????????????????????# #????# #?? | | ???????????????????????#r#????# #?? | | ???????????????????????# #????# #?? | | ???????????????????????# ###### #?? | | ???????????????????????# #?? | | ???????????????????????#### #####?? | | ??????????????????????????# #?????? | | ??????????????????????????# #?????? | | ?????????????????########## #?????? | | ?????????????????# =% = #?????? | | ?????????????????# ### ######?????? | | ????????????###### ###=#??????????? | | ????????????# ## #??????????? | | ????????????# ## #??????????? | | ????????????# ## #??????????? | +----------------------------------------------------+ Best States ------------- Heat Dissipation 25 Energy Generation 10 Energy Capacity 125 Matter Stores 300 Matter Capacity 300 Sight Range 16 Terrain Scan Density 10 Propulsion Shielding 33 Weapon Shielding 33 Evasion (%) 40 Recoil Reduction 2 Item Schematics ----------------- None Robot Schematics ------------------ None Fabricated ------------ Nothing Alien Tech Used ----------------- None Achievements -------------- None Challenges ------------ None Game ------ Seed DecoderDisassembledRailgun Manual? 0 Play Time 00:11:58 Cumulative 60.5 hours Start 2024.08.27 @ 17:41:56 End 2024.08.28 @ 12:13:12 Sessions 1 Manual Loads 0 Difficulty Rogue Special Mode None Game No. 109 Rogue 109 Adventurer 0 Explorer 0 Win Type - Total 0 Types 0/0/0/0/0/0/0/0/0 Lore% 23 Gallery% 43 Achievement% 35 Wizard Run 0 Options --------- Layout 0 ASCII 0 Keyboard 0 Movement Numpad Keybinds 0 Fullscreen 2 Font 18/SmallcapsGlow Map View 76x50 Zoom Use 0% Tactical HUD 1 Map Filters NONE Filters NONE Steam 1 RUN: 07812329-8984-4b50-90b7-f17565dc71f1